[Event "*** MasterClass Titled Tuesday Blitz"]
[Site "Chess.com"]
[Date "2017.12.05"]
[Round "1"]
[White "chesstrophy1"]
[Black "Winehouse83"]
[Result "0-1"]
[WhiteElo "1197"]
[BlackElo "2379"]
[TimeControl "180+2"]
[EndTime "14:22:14 PST"]
[Termination "Winehouse83 won by resignation"]

1. e4 {[%clk 0:03:01.9]} 1... e5 {[%clk 0:03:00]} 2. Nf3 {[%clk 0:03:02.1]} 2...
Nc6 {[%clk 0:02:54.4]} 3. Bc4 {[%clk 0:03:02.6]} 3... Bc5 {[%clk 0:02:55]} 4. c3
{[%clk 0:03:03]} 4... Nf6 {[%clk 0:02:55.8]} 5. d4 {[%clk 0:03:03.5]} 5... exd4
{[%clk 0:02:57.3]} 6. cxd4 {[%clk 0:03:05.1]} 6... Bb4+ {[%clk 0:02:58.9]} 7.
Bd2 {[%clk 0:03:06.3]} 7... Bxd2+ {[%clk 0:03:00.4]} 8. Nbxd2 {[%clk 0:03:07.4]}
8... d5 {[%clk 0:03:02.1]} 9. exd5 {[%clk 0:03:00.1]} 9... Nxd5 {[%clk
0:03:03.6]} 10. Qe2+ {[%clk 0:03:01.1]} 10... Nce7 {[%clk 0:03:01.5]} 11. O-O
{[%clk 0:02:59.2]} 11... O-O {[%clk 0:03:02.1]} 12. Nb3 {[%clk 0:02:50.4]} 12...
Bg4 {[%clk 0:03:00.7]} 13. h3 {[%clk 0:02:50.1]} 13... Bh5 {[%clk 0:03:01]} 14.
Qd3 {[%clk 0:02:48.4]} 14... c6 {[%clk 0:02:55.8]} 15. Rfe1 {[%clk 0:02:46.9]}
15... Bg6 {[%clk 0:02:56.3]} 16. Qd2 {[%clk 0:02:44]} 16... a5 {[%clk
0:02:53.4]} 17. Nc5 {[%clk 0:02:39.6]} 17... Qc7 {[%clk 0:02:45]} 18. Bd3 {[%clk
0:02:33.4]} 18... Rfd8 {[%clk 0:02:39.2]} 19. Bxg6 {[%clk 0:02:33.8]} 19... hxg6
{[%clk 0:02:41.1]} 20. Rad1 {[%clk 0:02:31.9]} 20... Nf5 {[%clk 0:02:41.3]} 21.
Qc2 {[%clk 0:02:18]} 21... Nf4 {[%clk 0:02:29.3]} 22. Ne4 {[%clk 0:02:09.9]}
22... Rd5 {[%clk 0:02:25.1]} 23. Rd2 {[%clk 0:02:07.3]} 23... Rad8 {[%clk
0:02:24.6]} 24. Red1 {[%clk 0:02:08.3]} 24... Ne6 {[%clk 0:02:16.2]} 25. Qc3
{[%clk 0:01:59.7]} 25... Qb6 {[%clk 0:02:09.6]} 26. Kf1 {[%clk 0:01:48.7]} 26...
Nfxd4 {[%clk 0:02:09.4]} 27. Nxd4 {[%clk 0:01:49.3]} 27... Nxd4 {[%clk
0:02:10.2]} 28. Ng3 {[%clk 0:01:42.3]} 28... Nb5 {[%clk 0:01:54.7]} 29. Qc2
{[%clk 0:01:40]} 29... Rxd2 {[%clk 0:01:50.5]} 30. Rxd2 {[%clk 0:01:40.9]} 30...
Rxd2 {[%clk 0:01:51.7]} 31. Qxd2 {[%clk 0:01:42.8]} 31... Qd4 {[%clk 0:01:51.6]}
32. Qxd4 {[%clk 0:01:42.2]} 32... Nxd4 {[%clk 0:01:52.3]} 33. Ne2 {[%clk
0:01:39.3]} 33... Nxe2 {[%clk 0:01:47.2]} 34. Kxe2 {[%clk 0:01:39.9]} 34... Kf8
{[%clk 0:01:48.8]} 35. Kd3 {[%clk 0:01:40.8]} 35... Ke7 {[%clk 0:01:50.3]} 36.
Kd4 {[%clk 0:01:42]} 36... b6 {[%clk 0:01:51.2]} 37. f4 {[%clk 0:01:40.3]} 37...
f6 {[%clk 0:01:49.2]} 38. g4 {[%clk 0:01:40.2]} 38... Kd6 {[%clk 0:01:42.8]} 39.
a3 {[%clk 0:01:37.7]} 39... b5 {[%clk 0:01:36.4]} 40. b3 {[%clk 0:01:38.1]}
40... c5+ {[%clk 0:01:32.7]} 41. Ke4 {[%clk 0:01:38.2]} 41... Ke6 {[%clk
0:01:28.7]} 42. f5+ {[%clk 0:01:36.4]} 42... gxf5+ {[%clk 0:01:29.5]} 43. gxf5+
{[%clk 0:01:37.9]} 43... Kd6 {[%clk 0:01:30.8]} 44. h4 {[%clk 0:01:36.2]} 44...
Kc6 {[%clk 0:01:31.3]} 45. Kd3 {[%clk 0:01:35.4]} 45... Kd5 {[%clk 0:01:32.2]}
46. Ke3 {[%clk 0:01:33.6]} 46... Ke5 {[%clk 0:01:32.7]} 47. Kf3 {[%clk
0:01:33.6]} 47... Kxf5 {[%clk 0:01:33.9]} 48. h5 {[%clk 0:01:34.1]} 48... Kg5
{[%clk 0:01:35]} 49. Ke4 {[%clk 0:01:34.9]} 49... Kxh5 {[%clk 0:01:36.1]} 50.
Kd5 {[%clk 0:01:36.3]} 50... c4 {[%clk 0:01:30.7]} 51. bxc4 {[%clk 0:01:36.4]}
51... bxc4 {[%clk 0:01:32.6]} 52. Kxc4 {[%clk 0:01:37.7]} 52... g5 {[%clk
0:01:34.2]} 53. Kb5 {[%clk 0:01:39.1]} 53... g4 {[%clk 0:01:35.8]} 54. Kxa5
{[%clk 0:01:40.6]} 54... g3 {[%clk 0:01:37.5]} 55. Kb6 {[%clk 0:01:41.9]} 55...
g2 {[%clk 0:01:39.1]} 56. a4 {[%clk 0:01:43.7]} 56... g1=Q+ {[%clk 0:01:40.6]}
57. Kb5 {[%clk 0:01:44.8]} 57... Qa7 {[%clk 0:01:41.1]} 58. a5 {[%clk
0:01:45.5]} 58... f5 {[%clk 0:01:42.2]} 59. a6 {[%clk 0:01:46.7]} 59... f4
{[%clk 0:01:43.6]} 0-1

[Event "*** MasterClass Titled Tuesday Blitz"]
[Site "Chess.com"]
[Date "2017.12.05"]
[Round "1"]
[White "pi_mal_auge"]
[Black "yurisolo"]
[Result "0-1"]
[WhiteElo "1617"]
[BlackElo "2472"]
[TimeControl "180+2"]
[EndTime "14:22:30 PST"]
[Termination "yurisolo won by resignation"]

1. c4 {[%clk 0:03:01.9]} 1... e5 {[%clk 0:02:58.8]} 2. g3 {[%clk 0:03:02]} 2...
d6 {[%clk 0:02:56]} 3. Bg2 {[%clk 0:03:02.2]} 3... f5 {[%clk 0:02:57.3]} 4. Nc3
{[%clk 0:03:02.4]} 4... Nf6 {[%clk 0:02:56.1]} 5. e3 {[%clk 0:03:02.2]} 5... Be7
{[%clk 0:02:53.3]} 6. Nge2 {[%clk 0:03:01.9]} 6... O-O {[%clk 0:02:52.8]} 7. O-O
{[%clk 0:03:02.4]} 7... c6 {[%clk 0:02:42.6]} 8. d3 {[%clk 0:02:59.4]} 8... Be6
{[%clk 0:02:39.2]} 9. b3 {[%clk 0:02:56]} 9... Nbd7 {[%clk 0:02:37.1]} 10. Qc2
{[%clk 0:02:56.4]} 10... Qe8 {[%clk 0:02:12.5]} 11. Bb2 {[%clk 0:02:47.8]} 11...
Qh5 {[%clk 0:02:10.2]} 12. f3 {[%clk 0:02:43.1]} 12... Rac8 {[%clk 0:01:42]} 13.
Rad1 {[%clk 0:02:41.4]} 13... b5 {[%clk 0:01:31.6]} 14. e4 {[%clk 0:02:33.9]}
14... fxe4 {[%clk 0:01:01.8]} 15. dxe4 {[%clk 0:02:28.4]} 15... b4 {[%clk
0:00:50.2]} 16. Nb1 {[%clk 0:02:23.2]} 16... d5 {[%clk 0:00:47.7]} 17. Nd2
{[%clk 0:02:17]} 17... Nc5 {[%clk 0:00:46.7]} 18. g4 {[%clk 0:02:12]} 18... Qg5
{[%clk 0:00:42.7]} 19. Ng3 {[%clk 0:02:05.7]} 19... Qe3+ {[%clk 0:00:37.8]} 20.
Kh1 {[%clk 0:02:02.7]} 20... Nd3 {[%clk 0:00:39.7]} 21. h3 {[%clk 0:01:44.5]}
21... Nf2+ {[%clk 0:00:30.8]} 22. Rxf2 {[%clk 0:01:43.6]} 22... Qxf2 {[%clk
0:00:32.6]} 23. Bxe5 {[%clk 0:01:38.3]} 23... Nd7 {[%clk 0:00:32.4]} 24. Rf1
{[%clk 0:01:32.9]} 24... Qe3 {[%clk 0:00:27.6]} 25. Bb2 {[%clk 0:01:31.8]} 25...
Bd6 {[%clk 0:00:23.7]} 26. Kh2 {[%clk 0:01:29.4]} 26... Qf4 {[%clk 0:00:20.3]}
27. Kg1 {[%clk 0:01:20.3]} 27... Qxg3 {[%clk 0:00:20.5]} 28. e5 {[%clk
0:01:18.7]} 28... Nxe5 {[%clk 0:00:20.6]} 29. Rf2 {[%clk 0:01:17.4]} 29... Bc5
{[%clk 0:00:20.5]} 30. Ne4 {[%clk 0:01:17.1]} 30... Bxf2+ {[%clk 0:00:19.9]} 31.
Nxf2 {[%clk 0:01:17.4]} 31... Nxf3+ {[%clk 0:00:20.3]} 32. Kf1 {[%clk 0:01:17]}
32... Nh4 {[%clk 0:00:18.7]} 33. Ke1 {[%clk 0:01:09.2]} 33... Nxg2+ {[%clk
0:00:18.8]} 34. Kd1 {[%clk 0:01:09.8]} 34... Ne3+ {[%clk 0:00:15.4]} 35. Kc1
{[%clk 0:01:09.5]} 35... Nxc2 {[%clk 0:00:15.7]} 36. Kxc2 {[%clk 0:01:10.6]}
36... Rxf2+ {[%clk 0:00:16.2]} 37. Kb1 {[%clk 0:01:11.7]} 37... Qg1+ {[%clk
0:00:18]} 38. Bc1 {[%clk 0:01:12.6]} 38... Rcf8 {[%clk 0:00:18.5]} 0-1

[Event "*** MasterClass Titled Tuesday Blitz"]
[Site "Chess.com"]
[Date "2017.12.05"]
[Round "1"]
[White "Pakarma"]
[Black "chidori_boruto"]
[Result "0-1"]
[WhiteElo "2072"]
[BlackElo "2531"]
[TimeControl "180+2"]
[EndTime "14:22:41 PST"]
[Termination "chidori_boruto won by resignation"]

1. e4 {[%clk 0:02:58.2]} 1... c6 {[%clk 0:03:00.3]} 2. d4 {[%clk 0:02:53.5]}
2... d5 {[%clk 0:03:00.3]} 3. f3 {[%clk 0:02:53.4]} 3... dxe4 {[%clk 0:03:00.7]}
4. fxe4 {[%clk 0:02:54.2]} 4... e5 {[%clk 0:03:01.8]} 5. Nf3 {[%clk 0:02:55.7]}
5... Bg4 {[%clk 0:03:01.7]} 6. Bc4 {[%clk 0:02:57]} 6... Nd7 {[%clk 0:03:02]} 7.
O-O {[%clk 0:02:54.9]} 7... Ngf6 {[%clk 0:03:02.3]} 8. Nc3 {[%clk 0:02:51.7]}
8... exd4 {[%clk 0:02:57.6]} 9. Ne2 {[%clk 0:02:12.4]} 9... Bc5 {[%clk
0:02:57.5]} 10. Kh1 {[%clk 0:02:09.3]} 10... Bxf3 {[%clk 0:02:55.8]} 11. Rxf3
{[%clk 0:02:06.8]} 11... Ne5 {[%clk 0:02:56.3]} 12. Bd3 {[%clk 0:01:53.7]} 12...
Nxf3 {[%clk 0:02:55.3]} 13. gxf3 {[%clk 0:01:55.6]} 13... O-O {[%clk 0:02:54.7]}
14. Qg1 {[%clk 0:01:54.4]} 14... Kh8 {[%clk 0:02:53.8]} 15. Bg5 {[%clk
0:01:54.6]} 15... Be7 {[%clk 0:02:53.7]} 16. Qg2 {[%clk 0:01:47.4]} 16... Nh5
{[%clk 0:02:47.8]} 17. Bxe7 {[%clk 0:01:46.2]} 17... Qxe7 {[%clk 0:02:49.7]} 18.
Rg1 {[%clk 0:01:46.3]} 18... Rg8 {[%clk 0:02:44.5]} 19. Nxd4 {[%clk 0:01:37.8]}
19... Nf4 {[%clk 0:02:44.8]} 20. Qg4 {[%clk 0:01:37.6]} 20... Nxd3 {[%clk
0:02:44.1]} 21. cxd3 {[%clk 0:01:39.5]} 21... Rad8 {[%clk 0:02:43.5]} 22. Nf5
{[%clk 0:01:40.3]} 22... Qf6 {[%clk 0:02:43.9]} 23. d4 {[%clk 0:01:37.6]} 23...
g6 {[%clk 0:02:43]} 24. Nh6 {[%clk 0:01:37.5]} 24... Rgf8 {[%clk 0:02:41.3]} 25.
e5 {[%clk 0:01:36.7]} 25... Qe7 {[%clk 0:02:39.5]} 26. Nf5 {[%clk 0:00:52.6]}
26... Qe6 {[%clk 0:02:37.2]} 27. Nd6 {[%clk 0:00:53.4]} 27... Qxg4 {[%clk
0:02:27.9]} 28. Rxg4 {[%clk 0:00:55.3]} 28... f6 {[%clk 0:02:20.6]} 29. f4
{[%clk 0:00:45.3]} 29... Kg7 {[%clk 0:02:10.4]} 30. Nxb7 {[%clk 0:00:42.4]}
30... Rxd4 {[%clk 0:02:07.1]} 31. Nc5 {[%clk 0:00:43.2]} 31... Re8 {[%clk
0:02:01.8]} 32. e6 {[%clk 0:00:26.7]} 32... Rc4 {[%clk 0:01:55.1]} 33. b4 {[%clk
0:00:26.2]} 33... a5 {[%clk 0:01:52.7]} 34. a3 {[%clk 0:00:16.1]} 34... axb4
{[%clk 0:01:53.5]} 35. axb4 {[%clk 0:00:17.9]} 35... Rxb4 {[%clk 0:01:54.1]} 36.
Rg3 {[%clk 0:00:16.6]} 36... Rc4 {[%clk 0:01:53.8]} 37. Nd3 {[%clk 0:00:11.7]}
37... Rxe6 {[%clk 0:01:53]} 38. Kg2 {[%clk 0:00:11.4]} 38... Re2+ {[%clk
0:01:52.6]} 39. Kh3 {[%clk 0:00:12]} 39... Rc3 {[%clk 0:01:51.8]} 40. f5 {[%clk
0:00:13.1]} 40... g5 {[%clk 0:01:48.7]} 41. Kg4 {[%clk 0:00:13.7]} 41... Rxh2
{[%clk 0:01:46.9]} 42. Re3 {[%clk 0:00:11.8]} 42... h5+ {[%clk 0:01:40.4]} 43.
Kg3 {[%clk 0:00:12.7]} 43... Rd2 {[%clk 0:01:40.8]} 44. Re7+ {[%clk 0:00:13.3]}
44... Kf8 {[%clk 0:01:41.7]} 0-1

[Event "*** MasterClass Titled Tuesday Blitz"]
[Site "Chess.com"]
[Date "2017.12.05"]
[Round "1"]
[White "Mistheoretical"]
[Black "igorkovalenko"]
[Result "0-1"]
[WhiteElo "2275"]
[BlackElo "2725"]
[TimeControl "180+2"]
[EndTime "14:23:08 PST"]
[Termination "igorkovalenko won by resignation"]

1. d4 {[%clk 0:03:01.6]} 1... Nf6 {[%clk 0:02:46.4]} 2. Bg5 {[%clk 0:02:58.7]}
2... Ne4 {[%clk 0:02:46.2]} 3. Bf4 {[%clk 0:02:57.3]} 3... c5 {[%clk 0:02:47.4]}
4. f3 {[%clk 0:02:58.3]} 4... Nf6 {[%clk 0:02:48.6]} 5. d5 {[%clk 0:02:54.3]}
5... Nh5 {[%clk 0:02:49.8]} 6. Bc1 {[%clk 0:02:11.1]} 6... d6 {[%clk 0:02:42.7]}
7. g4 {[%clk 0:01:48.9]} 7... Nf6 {[%clk 0:02:41]} 8. Nc3 {[%clk 0:01:44.1]}
8... e6 {[%clk 0:02:40.5]} 9. g5 {[%clk 0:01:18.3]} 9... Nh5 {[%clk 0:02:40.1]}
10. e4 {[%clk 0:01:16.8]} 10... Be7 {[%clk 0:02:40.9]} 11. f4 {[%clk 0:01:12]}
11... g6 {[%clk 0:02:39.7]} 12. Be2 {[%clk 0:01:09.5]} 12... Ng7 {[%clk
0:02:40]} 13. Bf3 {[%clk 0:01:04.9]} 13... a6 {[%clk 0:02:40]} 14. a4 {[%clk
0:01:05.5]} 14... Nd7 {[%clk 0:02:39.6]} 15. dxe6 {[%clk 0:00:50]} 15... fxe6
{[%clk 0:02:41.5]} 16. h4 {[%clk 0:00:48.3]} 16... h5 {[%clk 0:02:23.4]} 17. Nh3
{[%clk 0:00:38.4]} 17... O-O {[%clk 0:02:24]} 18. Be3 {[%clk 0:00:36.9]} 18...
Rb8 {[%clk 0:02:24.8]} 19. a5 {[%clk 0:00:35.2]} 19... b5 {[%clk 0:02:26]} 20.
axb6 {[%clk 0:00:34.6]} 20... Rxb6 {[%clk 0:02:27.1]} 21. b3 {[%clk 0:00:28.6]}
21... Bb7 {[%clk 0:02:28.2]} 22. O-O {[%clk 0:00:27.7]} 22... Rb4 {[%clk
0:02:28]} 23. Qd3 {[%clk 0:00:22.9]} 23... Qa8 {[%clk 0:02:22.9]} 24. Bg2 {[%clk
0:00:13.6]} 24... Nb8 {[%clk 0:02:17.3]} 25. Rf2 {[%clk 0:00:13.3]} 25... Nc6
{[%clk 0:02:18.3]} 26. Ra4 {[%clk 0:00:12.5]} 26... Rxa4 {[%clk 0:02:15.9]} 27.
Nxa4 {[%clk 0:00:14.4]} 27... Nb4 {[%clk 0:02:15.2]} 28. Qc4 {[%clk 0:00:12.4]}
28... d5 {[%clk 0:02:16.7]} 29. exd5 {[%clk 0:00:12.6]} 29... exd5 {[%clk
0:02:18.6]} 30. Qe2 {[%clk 0:00:12.6]} 30... d4 {[%clk 0:02:19.4]} 31. Bc1
{[%clk 0:00:13.5]} 31... Bd6 {[%clk 0:02:17.4]} 32. Bxb7 {[%clk 0:00:14]} 32...
Qxb7 {[%clk 0:02:18.5]} 33. Nxc5 {[%clk 0:00:13.1]} 33... Bxc5 {[%clk
0:02:19.6]} 34. Qc4+ {[%clk 0:00:14.6]} 34... Qd5 {[%clk 0:02:21]} 35. Qxd5+
{[%clk 0:00:14.1]} 35... Nxd5 {[%clk 0:02:22.9]} 36. Rd2 {[%clk 0:00:15]} 36...
Nf5 {[%clk 0:02:23.7]} 37. Bb2 {[%clk 0:00:14.6]} 37... d3+ {[%clk 0:02:24.2]}
38. Kh2 {[%clk 0:00:14.3]} 38... Nb4 {[%clk 0:02:23.8]} 39. cxd3 {[%clk
0:00:14.5]} 39... Rd8 {[%clk 0:02:24.2]} 40. d4 {[%clk 0:00:15.4]} 40... Bd6
{[%clk 0:02:25.2]} 41. Kg2 {[%clk 0:00:14.8]} 41... Nxh4+ {[%clk 0:02:24.1]} 42.
Kg3 {[%clk 0:00:16.2]} 42... Nf5+ {[%clk 0:02:26]} 43. Kf3 {[%clk 0:00:17.6]}
43... Nd5 {[%clk 0:02:27.1]} 44. Ke4 {[%clk 0:00:17.4]} 44... Nde7 {[%clk
0:02:28.4]} 45. d5 {[%clk 0:00:18.4]} 45... Rb8 {[%clk 0:02:29.7]} 46. Rd3
{[%clk 0:00:19.2]} 46... Rb4+ {[%clk 0:02:30.6]} 47. Kf3 {[%clk 0:00:19.2]}
47... Kf7 {[%clk 0:02:31.2]} 48. Be5 {[%clk 0:00:19.1]} 48... Rb5 {[%clk
0:02:29.3]} 49. Ke4 {[%clk 0:00:19.3]} 49... a5 {[%clk 0:02:30.4]} 50. Nf2
{[%clk 0:00:20.1]} 50... Rb4+ {[%clk 0:02:31.8]} 51. Kf3 {[%clk 0:00:21.2]}
51... Nh4+ {[%clk 0:02:29.6]} 52. Kg3 {[%clk 0:00:19.1]} 52... Nef5+ {[%clk
0:02:28.9]} 53. Kh3 {[%clk 0:00:19.9]} 53... Bc5 {[%clk 0:02:30.4]} 54. Nd1
{[%clk 0:00:19.6]} 54... Re4 {[%clk 0:02:22.2]} 55. Kh2 {[%clk 0:00:18.6]} 55...
Re2+ {[%clk 0:02:22.2]} 56. Kh1 {[%clk 0:00:17.9]} 56... Re1+ {[%clk 0:02:22]}
57. Kh2 {[%clk 0:00:18.4]} 57... Re2+ {[%clk 0:02:17.9]} 58. Kh3 {[%clk
0:00:17.8]} 58... Bg1 {[%clk 0:02:18.5]} 0-1

[Event "*** MasterClass Titled Tuesday Blitz"]
[Site "Chess.com"]
[Date "2017.12.05"]
[Round "1"]
[White "TregubovP"]
[Black "tteshan"]
[Result "1/2-1/2"]
[WhiteElo "2497"]
[BlackElo "2010"]
[TimeControl "180+2"]
[EndTime "14:23:09 PST"]
[Termination "Game drawn by agreement"]

1. d4 {[%clk 0:02:52.8]} 1... d5 {[%clk 0:03:00.6]} 2. c4 {[%clk 0:02:53.2]}
2... dxc4 {[%clk 0:03:02.2]} 3. e3 {[%clk 0:02:53.6]} 3... e5 {[%clk 0:03:02.5]}
4. Bxc4 {[%clk 0:02:54.2]} 4... exd4 {[%clk 0:03:02.2]} 5. exd4 {[%clk
0:02:55.2]} 5... Bd6 {[%clk 0:02:59.9]} 6. Nf3 {[%clk 0:02:56.5]} 6... Nf6
{[%clk 0:02:59.8]} 7. Qe2+ {[%clk 0:02:58]} 7... Qe7 {[%clk 0:02:59.7]} 8. Qxe7+
{[%clk 0:02:58.9]} 8... Bxe7 {[%clk 0:02:56.5]} 9. Nc3 {[%clk 0:02:57]} 9... a6
{[%clk 0:02:54.9]} 10. Bf4 {[%clk 0:02:52.7]} 10... c5 {[%clk 0:02:40]} 11. dxc5
{[%clk 0:02:52.4]} 11... Bxc5 {[%clk 0:02:39.6]} 12. O-O {[%clk 0:02:49.6]}
12... O-O {[%clk 0:02:40]} 13. Nd5 {[%clk 0:02:34.3]} 13... Nxd5 {[%clk
0:02:36.8]} 14. Bxd5 {[%clk 0:02:35]} 14... Nc6 {[%clk 0:02:37.1]} 15. Rac1
{[%clk 0:02:34.3]} 15... Ba7 {[%clk 0:02:25.9]} 16. Ne5 {[%clk 0:02:10.3]} 16...
Nxe5 {[%clk 0:02:21.6]} 17. Bxe5 {[%clk 0:02:11]} 17... Bf5 {[%clk 0:01:57.3]}
18. Bxb7 {[%clk 0:02:09.4]} 18... Rad8 {[%clk 0:01:58.3]} 19. Rfd1 {[%clk
0:02:02.9]} 19... Bd3 {[%clk 0:01:51]} 20. Rc3 {[%clk 0:01:53.5]} 20... Bb5
{[%clk 0:01:48.9]} 21. Rxd8 {[%clk 0:01:51.5]} 21... Rxd8 {[%clk 0:01:50.3]} 22.
Rc8 {[%clk 0:01:48.6]} 22... Rxc8 {[%clk 0:01:47]} 23. Bxc8 {[%clk 0:01:49.5]}
23... f6 {[%clk 0:01:46.5]} 24. Be6+ {[%clk 0:01:49.6]} 24... Kf8 {[%clk
0:01:47.2]} 25. Bd6+ {[%clk 0:01:50.7]} 25... Ke8 {[%clk 0:01:48.2]} 26. b3
{[%clk 0:01:49.9]} 26... Bb6 {[%clk 0:01:39.3]} 27. g3 {[%clk 0:01:41.6]} 27...
Be2 {[%clk 0:01:38.1]} 28. Kg2 {[%clk 0:01:40.7]} 28... Bd4 {[%clk 0:01:34.1]}
29. f3 {[%clk 0:01:37.2]} 29... Bd3 {[%clk 0:01:32.5]} 30. g4 {[%clk 0:01:28.8]}
30... Bb1 {[%clk 0:01:30.5]} 31. a4 {[%clk 0:01:28.1]} 31... Bd3 {[%clk
0:01:32]} 32. Kg3 {[%clk 0:01:28]} 32... g5 {[%clk 0:01:30.2]} 33. f4 {[%clk
0:01:27.7]} 33... Be3 {[%clk 0:01:27]} 34. Kf3 {[%clk 0:01:27]} 34... Bd4 {[%clk
0:01:25.9]} 35. f5 {[%clk 0:01:24.8]} 35... Bb6 {[%clk 0:01:17]} 36. Bc4 {[%clk
0:01:24.4]} 36... Bc2 {[%clk 0:01:14.9]} 37. Bxa6 {[%clk 0:01:15.8]} 37... Bxb3
{[%clk 0:01:11]} 38. Bb5+ {[%clk 0:01:17.3]} 38... Kd8 {[%clk 0:01:09.5]} 39.
Bc6 {[%clk 0:01:18]} 39... Bd1+ {[%clk 0:01:09.3]} 40. Kg3 {[%clk 0:01:19.1]}
40... Bc7 {[%clk 0:01:08.4]} 41. Bxc7+ {[%clk 0:01:18.2]} 41... Kxc7 {[%clk
0:01:09.6]} 42. Bb5 {[%clk 0:01:19.1]} 42... Kb6 {[%clk 0:01:10.5]} 43. h3
{[%clk 0:01:12.8]} 43... Ka5 {[%clk 0:01:11.2]} 44. Kf2 {[%clk 0:01:10.9]} 44...
Bxa4 {[%clk 0:01:07]} 45. Bxa4 {[%clk 0:00:58.8]} 45... Kxa4 {[%clk 0:01:08.3]}
46. Ke3 {[%clk 0:00:59.9]} 46... Kb5 {[%clk 0:01:09.8]} 47. Kd4 {[%clk
0:01:00.8]} 47... Kc6 {[%clk 0:01:11.3]} 48. Kc4 {[%clk 0:00:59.7]} 48... h6
{[%clk 0:01:10.3]} 49. Kd4 {[%clk 0:00:52.8]} 1/2-1/2

[Event "*** MasterClass Titled Tuesday Blitz"]
[Site "Chess.com"]
[Date "2017.12.05"]
[Round "1"]
[White "DanielRensch"]
[Black "EternallyBad"]
[Result "1-0"]
[WhiteElo "2456"]
[BlackElo "1511"]
[TimeControl "180+2"]
[EndTime "14:23:09 PST"]
[Termination "DanielRensch won by checkmate"]

1. e4 {[%clk 0:02:58.3]} 1... e5 {[%clk 0:02:59.6]} 2. Nf3 {[%clk 0:02:37]} 2...
Nc6 {[%clk 0:02:44.5]} 3. d4 {[%clk 0:01:46.7]} 3... exd4 {[%clk 0:02:43.8]} 4.
Nxd4 {[%clk 0:01:47.5]} 4... Bc5 {[%clk 0:02:43.4]} 5. Nxc6 {[%clk 0:01:48.5]}
5... bxc6 {[%clk 0:02:43.1]} 6. Nc3 {[%clk 0:01:49.3]} 6... Bb4 {[%clk
0:02:39.9]} 7. Bc4 {[%clk 0:01:49.9]} 7... Nf6 {[%clk 0:02:38.1]} 8. O-O {[%clk
0:01:47.6]} 8... O-O {[%clk 0:02:37.5]} 9. e5 {[%clk 0:01:39.9]} 9... Nd5 {[%clk
0:02:17.5]} 10. Nxd5 {[%clk 0:01:26.2]} 10... cxd5 {[%clk 0:02:17.8]} 11. Bxd5
{[%clk 0:01:28.1]} 11... c6 {[%clk 0:02:17.6]} 12. Be4 {[%clk 0:01:24.1]} 12...
d5 {[%clk 0:02:11.6]} 13. exd6 {[%clk 0:01:19.7]} 13... Qxd6 {[%clk 0:02:06.3]}
14. Qf3 {[%clk 0:01:18.9]} 14... Bb7 {[%clk 0:02:00.1]} 15. Bf4 {[%clk
0:01:19.4]} 15... Qc5 {[%clk 0:01:59]} 16. c3 {[%clk 0:00:57.2]} 16... Ba5
{[%clk 0:01:48.8]} 17. b4 {[%clk 0:00:53.6]} 17... Bxb4 {[%clk 0:01:48.9]} 18.
cxb4 {[%clk 0:00:53.6]} 18... Qxb4 {[%clk 0:01:49.9]} 19. Rac1 {[%clk
0:00:54.6]} 19... Rac8 {[%clk 0:01:48.5]} 20. Rfd1 {[%clk 0:00:53.9]} 20... f5
{[%clk 0:01:39.5]} 21. Bb1 {[%clk 0:00:31.4]} 21... c5 {[%clk 0:01:31.2]} 22.
Qg3 {[%clk 0:00:29.2]} 22... g6 {[%clk 0:01:25.5]} 23. a3 {[%clk 0:00:20.7]}
23... Qb5 {[%clk 0:01:20.5]} 24. Ba2+ {[%clk 0:00:21.6]} 24... Rf7 {[%clk
0:01:11.2]} 25. Be5 {[%clk 0:00:22.3]} 25... c4 {[%clk 0:01:06.6]} 26. Ba1
{[%clk 0:00:22.9]} 26... Rd7 {[%clk 0:00:59.7]} 27. Qc3 {[%clk 0:00:22.8]} 27...
Qc6 {[%clk 0:00:55.4]} 28. Qh8+ {[%clk 0:00:21.6]} 28... Kf7 {[%clk 0:00:56.4]}
29. Qg7+ {[%clk 0:00:22.4]} 29... Ke8 {[%clk 0:00:51.9]} 30. Qg8+ {[%clk
0:00:20.9]} 30... Ke7 {[%clk 0:00:51.3]} 31. Re1+ {[%clk 0:00:22]} 31... Kd6
{[%clk 0:00:49.3]} 32. Re6+ {[%clk 0:00:22.5]} 32... Kc7 {[%clk 0:00:43.2]} 33.
Rxc6+ {[%clk 0:00:22.4]} 33... Bxc6 {[%clk 0:00:44.3]} 34. Qxc4 {[%clk
0:00:23.1]} 34... Kb7 {[%clk 0:00:42.9]} 35. Qb4+ {[%clk 0:00:21.4]} 35... Ka8
{[%clk 0:00:41.6]} 36. Be5 {[%clk 0:00:22.3]} 36... Rb7 {[%clk 0:00:27]} 37. Qa4
{[%clk 0:00:19.3]} 37... a6 {[%clk 0:00:19.6]} 38. Qxa6+ {[%clk 0:00:18.9]}
38... Ra7 {[%clk 0:00:19]} 39. Qxc8# {[%clk 0:00:20]} 1-0